bitfinex/quotes_ETHUSD_20220213
["timestamp","ask_amount","ask_price","bid_price","bid_amount"]
[1644791167768,0.8651909,2891.6,2891.1,1.4404]
[1644791168014,0.00397475,2891.5,2891.1,1.4404]
[1644791168214,0.86522,2891.4,2891.1,1.4404]
[1644791168615,0.86522,2891.4,2891.1,0.3]
[1644791168815,0.86522,2891.4,2891.0,1.1716872]
[1644791169014,0.86522,2891.4,2891.0,1.4716872]
[1644791169417,0.86522,2891.4,2891.1,3.27162756]
[1644791170016,0.86522,2891.4,2891.1,3.30910661]
[1644791170221,0.86522,2891.4,2891.1,3.272557]
[1644791170417,0.86522,2891.4,2891.1,3.29860655]
[1644791170618,0.86522,2891.4,2891.0,1.4716872]
[1644791170819,0.86522,2891.4,2891.1,3.26539649]
[1644791171020,0.00397475,2891.5,2891.0,1.4716872]
[1644791172476,0.00397475,2891.5,2891.0,2.3368172]
[1644791172666,0.00397475,2891.6,2891.0,2.3368172]
[1644791172872,0.00397475,2891.7,2891.0,2.3368172]
[1644791173065,0.1729,2891.7,2891.0,2.3368172]
[1644791173267,0.00397475,2891.6,2891.0,2.3368172]
[1644791175069,0.17687475,2891.7,2891.0,2.3368172]
[1644791175373,1.04204475,2891.7,2891.0,2.3368172]
[1644791175620,1.90722075,2891.7,2891.0,2.3368172]
[1644791175819,1.90722075,2891.7,2891.0,1.4716872]
[1644791176019,1.16915075,2891.7,2891.0,1.4716872]
[1644791176220,1.34205075,2891.7,2891.0,1.4716872]
[1644791176422,0.17687475,2891.7,2891.5,1.02829976]
[1644791176623,0.1729,2891.7,2891.5,1.02829976]
[1644791176819,0.1729,2891.7,2891.5,1.32829976]
[1644791178031,0.88042026,2891.8,2891.5,1.32829976]
[1644791178222,1.73424625,2891.8,2891.1,1.16]
[1644791178422,1.74554026,2891.8,2891.1,1.16]
[1644791178621,0.88038876,2891.8,2891.1,1.46]
[1644791179479,0.86909475,2891.8,2891.1,2.3251]
[1644791179679,0.88038843,2891.8,2891.1,2.3251]
[1644791180583,0.86909475,2891.8,2891.1,2.3251]
[1644791180779,0.88038843,2891.8,2891.1,2.3251]
[1644791180979,0.88038843,2891.8,2891.1,5.56251556]
[1644791181179,0.88038843,2891.8,2891.1,5.570022]
[1644791181379,0.88038843,2891.8,2891.1,2.3251]
[1644791181678,0.88038843,2891.8,2891.1,5.61480203]
[1644791181679,0.86909475,2891.8,2891.1,5.61480203]
[1644791181878,0.5,2891.7,2891.1,5.61480203]
[1644791182080,0.00397475,2891.6,2891.1,5.61480203]
[1644791182279,0.00397475,2891.6,2891.1,5.64022467]
[1644791182478,0.00397475,2891.7,2891.1,5.64022467]
[1644791182680,0.00397475,2891.7,2891.1,5.59197643]
[1644791182880,0.00397475,2891.7,2891.1,5.62729644]
[1644791183127,0.00397475,2891.7,2891.1,6.49086686]
[1644791183320,0.01526831,2891.8,2891.1,6.49086686]
[1644791183619,0.01526831,2891.8,2891.1,6.43909997]
[1644791183820,0.01526831,2891.8,2891.1,3.18867042]
[1644791184019,0.01526831,2891.8,2891.1,6.44310131]
[1644791184320,0.01526843,2891.8,2891.1,3.18867042]
[1644791184521,0.01526843,2891.8,2891.1,6.41401161]
[1644791184721,0.01526843,2891.8,2891.1,6.4906486]
[1644791184921,0.01526843,2891.8,2891.1,3.18867042]
[1644791185121,0.01526843,2891.8,2891.1,6.43182962]
[1644791185321,0.00397475,2891.8,2891.1,6.44212953]
[1644791185521,0.01526843,2891.8,2891.1,6.44212953]
[1644791186120,0.01526843,2891.8,2891.1,1.46]
[1644791186321,0.86518,2891.7,2891.1,1.46]
[1644791186520,0.00397475,2891.6,2891.1,1.46]
[1644791187369,0.00397475,2891.6,2891.1,2.32514]
[1644791187867,0.00397475,2891.7,2891.1,2.32514]
[1644791188067,0.01129345,2891.8,2891.1,2.32514]
[1644791189067,0.30397475,2891.9,2891.1,1.82514]
[1644791189268,0.01129368,2891.8,2891.1,1.82514]
[1644791190269,0.30397475,2891.9,2891.1,1.82514]
[1644791190522,1.04935368,2891.8,2891.1,1.82514]
[1644791190720,0.00397475,2891.7,2891.1,1.82514]
[1644791197872,0.0016764,2891.6,2891.1,1.82514]
[1644791199921,0.0016764,2891.6,2891.1,1.46]
[1644791202068,0.0016764,2891.6,2891.1,2.32159754]
[1644791204371,0.0016764,2891.6,2891.1,1.46]
[1644791206224,0.0016764,2891.6,2891.1,3.19018]
[1644791207423,0.00565115,2891.6,2891.1,3.19018]
[1644791207624,0.0016764,2891.6,2891.1,3.19018]
[1644791209465,0.0016764,2891.6,2891.1,2.32509]
[1644791211468,0.0016764,2891.6,2891.1,5.55536979]
[1644791211673,0.0016764,2891.6,2891.1,5.5544957]
[1644791212468,0.0016764,2891.6,2891.1,2.32421591]
[1644791214922,0.0016764,2891.6,2891.2,3.25629671]
[1644791217169,0.0016764,2891.6,2891.3,2.03012]
[1644791218068,0.00397475,2891.8,2891.4,3.33055555]
[1644791218069,0.01693912,2891.8,2891.4,3.33055555]
[1644791218374,0.01693912,2891.8,2891.4,1.73004]
[1644791218568,0.01296437,2891.8,2891.4,1.16503]
[1644791218968,0.00167069,2891.8,2891.4,1.16503]
[1644791219372,0.0129647,2891.8,2891.5,0.86492]
[1644791219968,0.0129647,2891.8,2891.5,1.72984]
[1644791220168,0.00167069,2891.8,2891.5,1.72984]
[1644791220368,0.01296482,2891.8,2891.6,1.72978]
[1644791220617,0.01296482,2891.8,2891.6,2.02978]
[1644791221417,0.00167069,2891.8,2891.6,2.02978]
[1644791221619,0.01296493,2891.8,2891.6,2.02978]
[1644791222623,0.00167069,2891.8,2891.6,2.02978]
[1644791222821,0.01296493,2891.8,2891.6,2.02978]
[1644791223821,0.00167069,2891.8,2891.6,2.02978]
[1644791224022,0.01296493,2891.8,2891.6,2.02978]
[1644791225066,0.00167069,2891.8,2891.6,2.02978]
[1644791225269,0.01296493,2891.8,2891.6,2.02978]
[1644791226167,0.00167069,2891.8,2891.6,2.02978]
[1644791226468,0.01296493,2891.8,2891.6,2.02978]
[1644791227475,0.00167069,2891.8,2891.6,2.02978]
[1644791227769,0.01296493,2891.8,2891.6,2.02978]
[1644791228017,0.01129424,2891.8,2891.6,2.02978]
[1644791228617,0.00137149,2892.1,2891.6,2.02978]
[1644791228817,0.01129424,2891.8,2891.6,2.02978]
[1644791229117,0.01129424,2891.8,2891.6,0.3]
[1644791229318,0.01129424,2891.8,2891.5,2.34112]
[1644791229820,0.00137149,2892.1,2891.5,2.34112]
[1644791230022,0.01129413,2891.8,2891.5,2.34112]
[1644791231020,0.00137149,2892.1,2891.5,2.34112]
[1644791231220,0.01129413,2891.8,2891.6,0.86496]
[1644791232272,0.00137149,2892.1,2891.6,0.86496]
[1644791232470,0.01129424,2891.8,2891.6,0.8638881]
[1644791232870,0.0010972,2891.7,2891.6,0.8638881]
[1644791233070,0.0010972,2891.7,2891.5,2.34112]
[1644791248373,0.0010972,2891.7,2891.5,1.4762]
[1644791252717,0.17824196,2892.0,2891.5,1.4762]
[1644791252918,0.01129401,2891.8,2891.5,1.4762]
[1644791253623,0.01129401,2891.8,2891.5,2.34122]
[1644791253818,0.17824196,2892.0,2891.5,2.34122]
[1644791254021,0.01129413,2891.8,2891.5,2.34122]
[1644791255068,0.00136721,2892.0,2891.5,2.34122]
[1644791255270,0.01129413,2891.8,2891.5,2.34028312]
[1644791256275,0.00136721,2892.0,2891.5,2.34028312]
[1644791256471,0.01129413,2891.8,2891.5,2.34028312]
[1644791257473,0.00136721,2892.0,2891.5,2.34028312]
[1644791257673,0.01129413,2891.8,2891.5,2.34028312]
[1644791258520,0.00397475,2892.1,2891.5,2.34028312]
[1644791258722,0.1729,2892.0,2891.5,2.34028312]
[1644791258927,0.01129413,2891.8,2891.5,2.34028312]
[1644791259726,0.1729,2892.0,2891.5,2.34028312]
[1644791260124,0.01129413,2891.8,2891.5,2.34028312]
[1644791260923,0.1729,2892.0,2891.5,2.34028312]
[1644791261325,0.01129413,2891.8,2891.5,2.34028312]
[1644791262166,0.1729,2892.0,2891.5,2.34028312]
[1644791262367,0.01129413,2891.8,2891.5,2.34028312]
[1644791262767,0.00137149,2891.7,2891.5,2.34028312]
[1644791265629,0.00028577,2891.7,2891.5,2.34028312]
[1644791267929,0.00136721,2891.7,2891.5,2.34028312]
[1644791270672,0.00136721,2891.7,2891.5,1.47526312]
[1644791272876,0.00246299,2891.7,2891.5,1.47526312]
[1644791276788,0.00246299,2891.7,2891.6,3.23335467]
[1644791276975,0.00246299,2891.7,2891.5,1.47526312]
[1644791277477,1.68672173,2892.5,2891.6,3.5]
[1644791277679,0.00398085,2892.1,2891.7,1.47184447]
[1644791277878,0.00398085,2892.4,2891.8,0.1728]
[1644791278080,0.00398085,2892.6,2892.3,1.05121935]
[1644791278276,7.47,2893.1,2892.3,1.35121935]
[1644791278277,0.00398085,2892.8,2892.3,1.35121935]
[1644791278477,0.00398085,2893.0,2892.3,1.35121935]
[1644791279880,0.00398085,2893.0,2892.4,0.86475]
[1644791280524,0.01129693,2892.8,2892.4,0.86475]
[1644791281323,0.00398085,2893.0,2892.4,0.86475]
[1644791281724,0.00398085,2893.2,2892.6,0.86464]
[1644791281926,0.01070095,2892.7,2892.6,0.86464]
[1644791282124,0.01070095,2892.7,2892.6,1.16464]
[1644791282724,0.00398085,2893.3,2892.7,1.1646]
[1644791282925,0.01070087,2892.8,2892.7,1.1646]
[1644791283926,0.00398085,2893.3,2892.7,1.1646]
[1644791284127,0.0107007,2892.9,2892.7,1.1646]
[1644791284983,0.00398085,2893.3,2892.7,1.1646]
[1644791285377,0.01070062,2892.9,2892.7,2.02916]
[1644791285779,0.01070062,2892.9,2892.8,0.3]
[1644791286178,0.00398085,2893.3,2892.8,0.3]
[1644791286380,0.01066929,2893.0,2892.8,1.16458]
[1644791287380,0.00398085,2893.3,2892.8,1.16458]
[1644791287586,0.01066921,2893.0,2892.8,1.16458]
[1644791288722,0.00398085,2893.3,2892.8,1.16458]
[1644791288925,0.01066921,2893.0,2892.8,1.16458]
[1644791289924,0.00398085,2893.3,2892.8,1.16458]
[1644791290133,4.19724166,2894.0,2892.8,1.16458]
[1644791290331,1.0,2893.6,2892.8,0.86458]
[1644791290525,0.17209129,2894.0,2892.8,0.86458]
[1644791290725,0.17209129,2894.0,2892.9,0.86452]
[1644791290726,0.86452,2894.0,2892.9,0.86452]
[1644791290927,0.86452,2894.0,2893.0,4.36457]
[1644791291126,0.86452,2894.0,2893.0,0.86457]
[1644791291324,0.86452,2894.0,2892.9,1.4163]
[1644791291525,0.86452,2894.0,2892.9,1.2435]
[1644791291794,0.86452,2894.0,2892.9,1.5435]
[1644791292181,1.16452,2894.0,2893.0,0.86459]
[1644791292587,0.86853606,2893.9,2893.3,0.00452913]
[1644791293484,0.86853606,2893.9,2893.3,0.86459]
[1644791293685,0.00398606,2893.9,2893.3,0.86459]
[1644791293884,0.01095446,2893.7,2893.4,0.01095593]
[1644791294684,0.00398606,2893.9,2893.3,1.16459]
[1644791294885,0.01095454,2893.7,2893.4,1.73984582]
[1644791295925,0.00398606,2893.9,2893.4,1.72889]
[1644791296129,0.00644602,2893.7,2893.4,1.72889]
[1644791297027,0.0177194,2894.2,2893.4,1.72889]
[1644791297427,0.00644602,2893.7,2893.4,1.72889]
[1644791298227,0.00398606,2894.1,2893.4,1.72889]
[1644791298528,0.00644602,2893.7,2893.4,1.72889]
[1644791299581,0.00398606,2894.1,2893.4,1.72889]
[1644791299582,0.86846606,2894.1,2893.4,1.72889]
[1644791299774,0.01130609,2893.7,2893.4,1.74019741]
[1644791300175,0.01130609,2893.7,2893.4,1.91279741]
[1644791300680,0.86846606,2894.1,2893.4,1.90149]
[1644791300875,0.86846606,2894.1,2893.4,1.72889]
[1644791301073,0.01130609,2893.7,2893.4,1.74019741]
[1644791301475,0.01130609,2893.7,2893.4,2.04019741]
[1644791301674,0.01130609,2893.7,2893.5,0.86444]
[1644791301873,0.00398606,2894.1,2893.6,0.3]
[1644791302073,0.00643127,2893.7,2893.6,0.3]
[1644791302276,0.00643127,2893.7,2893.4,2.02889]
[1644791303138,0.02170546,2894.2,2893.4,2.02889]
[1644791303438,0.01069567,2893.7,2893.4,2.03958692]
[1644791303634,0.01069567,2893.7,2893.6,0.86442]
[1644791303833,0.01069567,2893.7,2893.6,1.16442]
[1644791304033,0.01069567,2893.7,2893.6,0.3]
[1644791304235,0.01069567,2893.7,2893.4,2.03958692]
[1644791304436,0.02170546,2894.2,2893.5,0.1726]
[1644791304636,0.01069552,2893.8,2893.5,0.1726]
[1644791304837,0.01069552,2893.8,2893.5,1.03702]
[1644791305237,0.01069552,2893.8,2893.6,0.3]
[1644791305636,0.0177194,2894.2,2893.6,1.16431]
[1644791305835,0.01069545,2893.8,2893.6,1.72857]
[1644791306237,0.01069545,2893.8,2893.7,0.3]
[1644791306878,0.01073674,2893.9,2893.7,1.16433]
[1644791307877,0.0177194,2894.2,2893.7,1.16433]
[1644791308083,0.0177194,2894.2,2893.7,0.3]
[1644791308287,0.01073667,2893.9,2893.5,1.6221]
[1644791309080,0.01073667,2893.9,2893.5,3.35071]
[1644791309280,0.0177194,2894.2,2893.5,3.35071]
[1644791309481,0.01073682,2893.8,2893.5,3.17811]
[1644791310286,0.0177194,2894.2,2893.5,3.17811]
[1644791310524,0.01073409,2893.8,2893.5,3.17811]
[1644791311526,0.0177194,2894.2,2893.5,3.17811]
[1644791311725,0.0177194,2894.2,2893.5,6.49073057]
[1644791311928,0.0177194,2894.2,2893.5,3.17811]
[1644791312724,0.0177194,2894.2,2893.6,0.8643]
[1644791312926,0.01073906,2894.0,2893.6,0.8643]
[1644791313127,0.01073906,2894.0,2893.6,4.11]
[1644791313728,0.01073906,2894.0,2893.6,4.97429]
[1644791314031,0.0177194,2894.2,2893.7,1.16301761]
[1644791314277,0.01095621,2893.9,2893.7,1.16301761]
[1644791315276,0.0177194,2894.2,2893.7,1.16301761]
[1644791315475,0.01095621,2893.9,2893.7,0.3]
[1644791316277,0.0177194,2894.2,2893.7,0.3]
[1644791316474,0.0177194,2894.2,2893.7,1.16432]
[1644791316679,0.01095621,2893.9,2893.7,1.16432]
[1644791317475,0.0177194,2894.2,2893.7,1.16432]
[1644791317875,0.01072468,2893.9,2893.7,1.16432]
[1644791318823,0.0177194,2894.2,2893.7,1.16432]
[1644791319023,0.01072468,2893.9,2893.7,1.16432]
[1644791320022,0.0177194,2894.2,2893.7,1.16432]
[1644791320224,0.01072468,2893.9,2893.7,1.16432]
[1644791321227,0.0177194,2894.2,2893.7,1.16432]
[1644791321427,0.0107403,2893.9,2893.7,1.16432]
[1644791322379,0.0177194,2894.2,2893.7,1.16432]
[1644791322580,0.0107403,2893.9,2893.7,1.16432]
[1644791323582,0.0177194,2894.2,2893.7,1.16432]
[1644791323783,0.0107403,2893.9,2893.7,1.16432]
[1644791324785,0.0177194,2894.2,2893.7,1.16432]
[1644791326228,0.0064361,2894.1,2893.7,1.16432]
[1644791327325,0.0177194,2894.2,2893.7,1.16432]
[1644791327527,0.0064361,2894.0,2893.7,1.16432]
[1644791327726,0.0064361,2894.0,2893.7,2.0286]
[1644791328325,0.0177194,2894.2,2893.7,2.0286]
[1644791328527,0.01132291,2894.0,2893.7,2.0286]
[1644791328724,0.01132291,2894.0,2893.7,1.16432]
[1644791329126,0.02432716,2894.4,2893.7,1.16432]
[1644791329583,0.02145104,2894.5,2893.7,1.16432]
[1644791330177,0.5,2894.3,2893.7,1.16432]
[1644791330378,0.00400454,2894.2,2893.7,1.16432]
[1644791330779,0.02145104,2894.5,2893.7,1.16432]
[1644791332182,0.02786595,2894.5,2893.7,1.16432]
[1644791332880,0.00250722,2894.4,2893.7,1.16432]
[1644791333529,0.00250722,2894.4,2893.9,0.01132371]
[1644791334328,0.00250722,2894.4,2893.9,0.8643]
[1644791334528,0.00250722,2894.4,2893.9,1.1643]
[1644791334731,0.00250722,2894.4,2894.0,0.01132354]
[1644791335529,0.86687722,2894.4,2894.0,0.3]
[1644791335728,0.86687722,2894.4,2893.7,1.16434]
[1644791335927,0.86687722,2894.4,2894.1,0.01132345]
[1644791335928,0.00400454,2894.3,2894.1,0.01132345]
[1644791336128,0.86687722,2894.4,2894.1,0.01132345]
[1644791336328,0.00250722,2894.4,2894.1,0.01132345]
[1644791336778,0.00250722,2894.4,2893.7,1.16434]
[1644791336974,0.00250722,2894.4,2894.1,0.01132337]
[1644791337780,0.00166578,2894.4,2894.1,0.01132337]
[1644791337975,0.00166578,2894.4,2893.7,1.16434]
[1644791338175,0.00567032,2894.4,2894.1,0.01132337]
[1644791338577,0.00166578,2894.4,2894.1,0.01132337]
[1644791339176,0.00166578,2894.4,2893.7,1.16434]
[1644791339375,0.00166578,2894.4,2894.1,0.01132337]
[1644791339376,0.00567032,2894.4,2894.1,0.01132337]
[1644791339577,0.00166578,2894.4,2894.1,0.01132337]
[1644791340378,0.00166578,2894.4,2893.9,0.3]
[1644791340631,0.00166578,2894.4,2894.1,0.01132337]
[1644791341628,0.00166578,2894.4,2893.9,0.3]
[1644791341828,0.00166578,2894.4,2894.1,0.01132337]
[1644791342935,0.00166578,2894.4,2894.0,0.86427]
[1644791343130,0.00166578,2894.4,2894.1,0.01132337]
[1644791343529,0.00166578,2894.4,2894.1,0.31132337]
[1644791344032,0.00166578,2894.4,2894.1,0.3]
[1644791344276,0.00166578,2894.4,2894.1,0.01132337]
[1644791344876,0.00166578,2894.4,2894.1,0.87551337]
[1644791345280,0.00166578,2894.4,2894.1,1.16419]
[1644791345476,0.00166578,2894.4,2894.1,1.17551337]
[1644791346477,0.00166578,2894.4,2894.1,1.16419]
[1644791346677,0.00166578,2894.4,2894.1,1.17551337]
[1644791347579,0.00166578,2894.4,2894.1,1.16419]
[1644791347782,0.00166578,2894.4,2894.1,1.17551337]
[1644791348834,0.00166578,2894.4,2894.1,1.16419]
[1644791349035,0.00166578,2894.4,2894.1,1.17551337]
[1644791350036,0.00166578,2894.4,2894.1,1.16419]
[1644791350237,0.00166578,2894.4,2894.1,1.17551337]
[1644791351239,0.00166578,2894.4,2894.1,1.16419]
[1644791351438,0.00166578,2894.4,2894.1,1.17485513]
[1644791351884,0.00166578,2894.4,2894.1,0.87485513]
[1644791352482,0.00166578,2894.4,2894.1,0.86419]
[1644791352684,0.00166578,2894.4,2894.1,0.87485513]
[1644791353283,0.00166578,2894.4,2894.1,1.17485513]
[1644791353685,0.00166578,2894.4,2894.1,1.17350887]
[1644791354882,0.00166578,2894.4,2894.1,1.16284374]
[1644791355082,0.00166578,2894.4,2894.1,0.87485513]
[1644791355283,0.00166578,2894.4,2894.1,0.01066513]
[1644791355928,0.00166578,2894.4,2893.7,1.1497]
[1644791356330,0.00166578,2894.4,2894.1,0.01070284]
[1644791356928,1.95863349,2894.5,2894.1,0.01070284]
[1644791357129,0.86435,2894.4,2893.7,1.4497]
[1644791357328,4.07356844,2894.4,2893.7,1.4497]
[1644791357530,0.86835454,2894.4,2894.2,0.01070275]
[1644791357731,0.86054769,2894.4,2894.2,0.01070275]
[1644791357929,0.00166578,2894.3,2894.2,0.01070275]
[1644791358332,0.00166578,2894.3,2893.7,1.4497]
[1644791358529,0.00567032,2894.3,2893.7,1.4497]
[1644791358729,0.00567032,2894.3,2894.1,0.01070284]
[1644791359580,0.00567032,2894.3,2893.7,1.4497]
[1644791359978,0.00567032,2894.3,2894.1,0.01070041]
[1644791360180,0.86441,2894.2,2894.1,0.01070041]
[1644791360379,0.00567032,2894.3,2894.1,0.01070041]
[1644791360779,0.00567032,2894.3,2893.7,1.1497]
[1644791360983,0.00567032,2894.3,2894.1,0.01070041]
[1644791361480,0.87007032,2894.3,2894.1,0.01070041]
[1644791361678,1.17007032,2894.3,2894.1,0.01070041]
[1644791362079,1.17007032,2894.3,2893.7,1.1497]
[1644791362279,3.24271125,2894.2,2894.1,0.01070041]
[1644791362480,1.17007032,2894.3,2894.1,0.01070041]
[1644791363038,1.16840454,2894.3,2894.1,0.01070041]
[1644791363229,0.30400454,2894.3,2893.6,3.5457]
[1644791363429,0.86445,2894.1,2893.6,3.5457]
[1644791363634,0.00400454,2894.0,2893.6,3.5457]
[1644791364731,0.00400454,2894.0,2893.7,0.01070127]
[1644791364932,0.86445,2894.1,2893.7,0.01070127]
[1644791365133,0.00400454,2894.0,2893.7,0.01070127]
[1644791365432,3.23302085,2894.2,2893.7,0.01070127]
[1644791365634,0.00400454,2894.2,2893.6,0.3]
[1644791365832,3.22074325,2894.2,2893.5,1.33699]
[1644791366033,0.00400454,2894.2,2893.7,0.01070119]
[1644791366337,3.82386435,2894.4,2893.7,0.01070119]
[1644791366779,1.0,2894.3,2893.7,0.01070119]
[1644791366978,0.00400454,2894.2,2893.9,0.01070086]
[1644791367177,0.86444,2894.1,2893.9,0.01070086]
[1644791367576,1.16444,2894.1,2893.9,0.01070086]
[1644791367977,1.16444,2894.1,2893.4,0.1726]
[1644791368178,1.16844454,2894.1,2893.5,1.47080627]
[1644791368380,1.16844454,2894.1,2893.9,0.01070095]
[1644791368580,1.16444,2894.1,2893.9,0.01070095]
[1644791369283,1.16444,2894.1,2893.4,1.33702]
[1644791369481,1.16444,2894.1,2893.9,0.01070095]
[1644791370537,1.16444,2894.1,2893.4,1.33702]
[1644791370729,1.16844454,2894.1,2893.9,0.01070093]
[1644791370928,1.16444,2894.1,2893.9,0.01070093]
[1644791371528,1.16444,2894.1,2893.4,1.33702]
[1644791371733,1.16844454,2894.1,2893.4,1.33702]
[1644791371936,1.16444,2894.1,2893.9,0.01070093]
[1644791372729,1.16444,2894.1,2893.4,0.4726]
[1644791373131,1.16444,2894.1,2893.9,0.01070093]
[1644791374135,1.16444,2894.1,2893.4,0.4726]
[1644791374386,1.16444,2894.1,2893.9,0.01070093]
[1644791375183,1.16444,2894.1,2893.4,0.4726]
[1644791375384,1.16444,2894.1,2893.9,0.01070093]
[1644791375883,1.16444,2894.1,2893.4,0.33330093]
[1644791376083,1.16444,2894.1,2893.5,1.47082016]
[1644791377885,1.16444,2894.1,2893.7,0.01070127]
[1644791378138,0.8645,2894.0,2893.7,0.01070127]
[1644791379031,0.8645,2894.0,2893.7,0.01070119]
[1644791380035,0.8645,2894.0,2893.4,0.33330093]
[1644791380230,0.8645,2894.0,2893.3,2.01496]
[1644791380231,0.8645,2894.0,2893.7,0.01070119]
[1644791381331,0.8645,2894.0,2893.3,2.48756]
[1644791381532,0.8645,2894.0,2893.7,0.01070089]
[1644791382586,0.8645,2894.0,2893.3,2.48756]
[1644791382788,0.8645,2894.0,2893.7,0.01070089]
[1644791383686,0.8645,2894.0,2893.3,2.48756]
[1644791383888,0.8645,2894.0,2893.7,0.01070089]
[1644791384887,0.8645,2894.0,2893.3,2.48756]
[1644791385088,0.3645,2894.0,2893.7,0.01070091]
[1644791385930,1.3645,2894.0,2893.7,0.01070091]
[1644791386130,1.6645,2894.0,2893.3,2.31496]
[1644791386329,1.6645,2894.0,2893.7,0.01070091]
[1644791387331,1.6645,2894.0,2893.3,2.31496]
[1644791387631,1.6645,2894.0,2893.7,0.01070091]
[1644791387833,0.6645,2894.0,2893.7,0.01070091]
[1644791388332,0.3645,2894.0,2893.7,0.01070091]
[1644791388531,0.3645,2894.0,2893.3,2.31496]
[1644791388732,0.3645,2894.0,2893.7,0.01070091]
[1644791389580,0.3645,2894.0,2893.3,2.31496]
[1644791390081,0.3645,2894.0,2893.7,0.01070091]
[1644791390784,0.3645,2894.0,2893.3,2.48756]
[1644791391181,0.3645,2894.0,2893.7,0.01070091]
[1644791391981,0.3645,2894.0,2893.3,2.48756]
[1644791392385,0.3645,2894.0,2893.7,0.01070091]
[1644791393233,0.3645,2894.0,2893.3,2.31496]
[1644791393435,0.3645,2894.0,2893.7,0.01070091]
[1644791394433,0.3645,2894.0,2893.3,2.31496]
[1644791394634,0.3645,2894.0,2893.7,0.01070091]
[1644791395635,0.3645,2894.0,2893.3,2.31496]
[1644791395836,0.3645,2894.0,2893.7,0.01070091]
[1644791396781,0.3645,2894.0,2893.4,0.3]
[1644791396982,0.3645,2894.0,2893.3,1.6231]
[1644791397183,0.3645,2894.0,2893.7,0.01070091]
[1644791397688,3.60335658,2894.0,2893.7,0.01070091]
[1644791398083,3.58605282,2894.0,2893.3,1.6231]
[1644791398284,3.58605282,2894.0,2893.7,0.01070091]
[1644791398483,0.3645,2894.0,2893.7,0.01070091]
[1644791398886,1.3645,2894.0,2893.7,0.01070091]
[1644791399085,4.64610499,2894.0,2893.7,0.01070091]
[1644791399284,3.64610499,2894.0,2893.3,1.6231]
[1644791399483,3.64610499,2894.0,2893.7,0.01070091]
[1644791399685,3.57586363,2894.0,2893.7,0.01070091]
[1644791399883,0.3645,2894.0,2893.7,0.01070091]
[1644791400086,3.59730487,2894.0,2893.7,0.01070091]
[1644791400288,3.41436674,2893.9,2893.7,0.01070091]
[1644791400537,0.3,2893.8,2893.3,1.4505]
[1644791400731,1.16456,2893.8,2893.3,1.41120091]
[1644791401232,1.16456,2893.8,2893.2,0.1726]
[1644791404286,1.16456,2893.8,2893.4,0.0107015]
[1644791404485,3.20814855,2893.7,2893.4,0.0107015]
[1644791404685,3.31727021,2893.7,2893.4,0.0107015]
[1644791404886,1.16456,2893.8,2893.4,0.0107015]
[1644791405086,3.20376605,2893.7,2893.4,0.0107015]
[1644791405289,3.20376605,2893.7,2893.1,0.86452]
[1644791405290,3.20376605,2893.7,2893.1,1.16452]
[1644791405493,3.20376605,2893.7,2893.5,0.01070133]
[1644791405689,1.16456,2893.8,2893.5,0.01070133]
[1644791406489,1.16456,2893.8,2893.2,0.86456]
[1644791406789,1.16456,2893.8,2893.5,0.01070099]
[1644791407609,3.20121283,2893.7,2893.5,0.01070099]
[1644791407791,1.16456,2893.8,2893.3,0.86456]
[1644791408040,3.23856365,2893.7,2893.5,0.01070099]
[1644791408234,0.86458,2893.7,2893.5,0.01070099]
[1644791409032,0.86458,2893.7,2893.5,0.01070108]
[1644791409232,0.27444298,2893.6,2893.5,0.01070108]
[1644791409433,0.54888596,2893.6,2893.5,0.01070108]
[1644791410035,0.54888596,2893.6,2893.3,1.16456]
[1644791410435,0.54888596,2893.6,2893.4,0.01070119]
[1644791411334,0.54888596,2893.6,2893.3,1.16456]
[1644791411535,0.54888596,2893.6,2893.4,0.01070127]
[1644791412586,0.54888596,2893.6,2893.3,0.86456]
[1644791412785,0.54888596,2893.6,2893.4,0.01070127]
[1644791413587,0.54888596,2893.6,2893.3,0.86456]
[1644791413787,0.54888596,2893.6,2893.3,1.16456]
[1644791413987,0.54888596,2893.6,2893.4,0.01070129]
[1644791414387,1.16458,2893.7,2893.4,0.01070129]
[1644791414588,0.27444298,2893.5,2893.4,0.01070129]
[1644791414789,0.27444298,2893.5,2893.3,1.16456]
[1644791415190,0.27444298,2893.5,2893.3,1.17526138]
[1644791416133,0.27444298,2893.5,2893.3,1.16456]
[1644791416333,0.27444298,2893.5,2893.3,1.12526146]
[1644791417234,0.27444298,2893.5,2893.3,1.11456]
[1644791417434,0.27444298,2893.5,2893.3,1.12526146]
[1644791418438,0.27444298,2893.5,2893.3,1.11456]
[1644791418634,0.27444298,2893.5,2893.3,1.12526146]
[1644791419687,0.86458,2893.7,2893.3,1.11456]
[1644791419888,0.54888596,2893.4,2893.3,1.11456]
[1644791420088,0.54888596,2893.4,2893.3,1.12526146]
[1644791420888,0.54888596,2893.4,2893.3,1.11456]
[1644791423642,0.54888596,2893.4,2893.2,0.01070155]
[1644791424434,0.54888596,2893.4,2893.1,1.16452]
[1644791424833,0.54888596,2893.4,2893.2,0.01070164]
[1644791425034,0.86461,2893.6,2893.2,0.01070164]
[1644791425336,0.54888596,2893.4,2893.2,0.01070164]
[1644791425735,0.54888596,2893.4,2893.1,1.16452]
[1644791425934,0.54888596,2893.4,2893.2,0.01070164]
[1644791426789,0.54888596,2893.4,2893.1,1.16452]
[1644791427188,0.54888596,2893.4,2893.2,0.01070164]
[1644791427790,1.41354596,2893.4,2893.2,0.01070164]
[1644791427991,1.41354596,2893.4,2893.0,0.86464]
[1644791428389,1.41354596,2893.4,2893.2,0.01070165]
[1644791429390,1.41354596,2893.4,2893.0,0.86464]
[1644791429590,1.41354596,2893.4,2893.2,0.01070165]
[1644791430391,1.13910298,2893.4,2893.2,0.01070165]
[1644791430640,0.27444298,2893.3,2893.2,0.01070165]
[1644791430846,3.79746872,2893.3,2893.2,0.01070165]
[1644791431646,3.79746872,2893.3,2892.8,0.1728]
[1644791431841,0.86471,2893.2,2893.1,0.00490654]
[1644791432942,0.86471,2893.2,2892.9,0.3]
[1644791433141,0.86471,2893.2,2893.0,0.00490671]
[1644791433541,3.17638461,2893.1,2893.0,0.00490671]
[1644791433942,0.86471,2893.2,2893.0,0.00490671]
[1644791434145,0.86471,2893.2,2892.7,1.16471]
[1644791434388,4.06786845,2893.2,2892.9,0.00490688]
[1644791434591,0.86471,2893.2,2892.9,0.00490688]
[1644791435390,0.86471,2893.2,2892.7,1.16471]
[1644791435593,4.07196108,2893.2,2892.9,0.01133065]